bitfinex/quotes_ETHUSD_20260306
["timestamp","ask_amount","ask_price","bid_price","bid_amount"]
[1772816413714,1.26877791,1970.4,1969.7,1.26922881]
[1772816414033,1.76245579,1970.5,1969.8,0.48773844]
[1772816414218,1.76245579,1970.5,1969.9,0.48883844]
[1772816414424,1.76245579,1970.5,1969.9,0.0011]
[1772816414620,0.49371699,1970.4,1969.9,0.0011]
[1772816415224,1.2687388,1970.5,1969.9,0.48883844]
[1772816415810,1.76236613,1970.6,1970.0,1.75677397]
[1772816416237,1.173,1970.7,1970.0,1.75677397]
[1772816416436,2.4416024,1970.7,1970.0,1.75677397]
[1772816416845,1.76213712,1971.0,1970.1,0.48773844]
[1772816417011,1.26836198,1971.1,1970.2,0.48773844]
[1772816418237,0.49371699,1971.0,1969.9,1.75789295]
[1772816418428,0.49371699,1970.9,1969.9,1.75789295]
[1772816419218,0.49371699,1970.9,1969.9,1.75791493]
[1772816419422,0.49371699,1970.9,1969.9,1.27019076]
[1772816419839,0.49371699,1970.9,1969.9,1.27019216]
[1772816420348,0.49371699,1970.7,1970.0,0.48773844]
[1772816420517,1.26852039,1970.8,1970.0,0.48773844]
[1772816421442,1.76211572,1971.0,1970.0,0.48773844]
[1772816421739,1.76211119,1971.0,1970.0,0.48773844]
[1772816422241,0.49371699,1970.9,1969.9,1.27019216]
[1772816422440,1.26843209,1971.0,1970.2,0.48773844]
[1772816423839,0.49471699,1971.2,1970.2,0.48773844]
[1772816424038,0.001,1971.2,1970.2,0.48773844]
[1772816424228,1.26926898,1971.2,1970.4,0.48773844]
[1772816424750,0.001,1971.5,1970.7,0.48773844]
[1772816425315,0.001,1971.5,1970.9,0.48773844]
[1772816425548,0.001,1971.5,1971.0,0.909]
[1772816426044,0.001,1971.5,1971.1,0.48773844]
[1772816426546,0.001,1971.5,1971.3,0.48773844]
[1772816426742,0.001,1972.0,1971.3,0.48773844]
[1772816427320,0.001,1972.0,1971.4,0.909]
[1772816427744,0.001,1972.0,1971.3,1.39673844]
[1772816428041,0.49471699,1972.0,1971.0,0.909]
[1772816428348,0.49471699,1972.0,1971.0,0.48773844]
[1772816429146,1.26781276,1971.9,1971.1,1.26832732]
[1772816429742,1.7625038,1972.0,1971.1,1.26832732]
[1772816429934,1.7625038,1972.0,1971.1,1.75606576]
[1772816430244,0.001,1972.0,1971.2,0.48773844]
[1772816430437,0.001,1972.0,1971.4,0.48773844]
[1772816430744,1.76247534,1972.0,1971.1,1.75606576]
[1772816430951,1.76247534,1972.0,1971.2,0.909]
[1772816431151,1.76247534,1972.0,1971.3,1.26819865]
[1772816431350,1.26875835,1972.0,1971.3,1.26819865]
[1772816431852,0.001,1972.0,1971.4,0.46774344]
[1772816432846,1.2685215,1972.4,1971.4,0.46774344]
[1772816433418,0.001,1972.4,1971.6,0.46774344]
[1772816433646,0.001,1972.4,1971.8,0.46774344]
[1772816433817,1.26851704,1972.4,1971.8,0.46774344]
[1772816434017,0.001,1972.4,1971.8,0.46774344]
[1772816434746,1.75544922,1972.7,1971.8,0.46774344]
[1772816435749,0.48812175,1972.6,1971.9,1.26781276]
[1772816436347,5.0691945,1973.0,1972.0,0.46774344]
[1772816436348,0.48812175,1973.0,1972.0,0.46774344]
[1772816436757,1.26802617,1973.2,1972.0,0.46774344]
[1772816437046,1.75614792,1973.2,1972.0,0.46774344]
[1772816438234,1.75614792,1973.2,1972.2,0.46774344]
[1772816438423,1.75614792,1973.2,1972.1,1.26768419]
[1772816438424,0.48812175,1973.1,1972.1,1.26768419]
[1772816438620,0.48812175,1973.0,1971.6,0.909]
[1772816438821,0.48812175,1973.0,1971.9,0.0011]
[1772816439231,0.001,1972.3,1971.9,0.0011]
[1772816440042,0.48812175,1972.9,1971.9,0.46884344]
[1772816440245,0.48812175,1972.7,1971.9,1.2688605]
[1772816440964,0.48812175,1972.7,1971.9,0.0011]
[1772816441463,0.48812175,1972.7,1971.9,1.26890478]
[1772816441826,0.48812175,1972.7,1971.9,0.0011]
[1772816442222,0.48812175,1972.5,1971.9,0.0011]
[1772816444252,0.48812175,1972.3,1971.9,0.0011]
[1772816445756,0.48812175,1972.3,1971.8,0.0011]
[1772816446455,0.48812175,1972.1,1971.8,0.0011]
[1772816447969,0.48812175,1972.1,1971.6,0.0011]
[1772816448136,0.48812175,1971.9,1971.0,1.26833792]
[1772816448327,0.48812175,1971.9,1971.1,0.46774344]
[1772816448532,1.26787706,1971.8,1971.2,1.26826298]
[1772816448734,1.26785707,1971.9,1971.2,1.73600642]
[1772816449562,1.65812175,1972.0,1971.2,1.26826298]
[1772816449748,1.26767755,1972.2,1971.3,0.46774344]
[1772816449952,1.75571019,1972.3,1971.3,0.46774344]
[1772816450150,1.7556795,1972.3,1971.3,0.46774344]
[1772816450535,1.7556795,1972.3,1971.4,1.73587776]
[1772816450732,0.48812175,1972.2,1971.4,1.73587776]
[1772816451761,0.48812175,1972.2,1971.4,1.26813432]
[1772816452866,1.75580594,1972.1,1971.3,0.0011]
[1772816453562,1.75580594,1972.1,1971.3,0.46884344]
[1772816454542,0.48812175,1972.0,1971.3,0.0011]
[1772816454743,1.75593451,1971.9,1971.3,0.0011]
[1772816456963,0.46247175,1971.8,1971.3,0.0011]
[1772816457937,2.43785372,1971.9,1971.3,0.485574]
[1772816458147,1.17,1971.9,1971.3,0.485574]
[1772816458352,1.26775103,1972.0,1971.3,0.485574]
[1772816459353,0.46247175,1972.0,1971.4,1.26813432]
[1772816459554,0.46247175,1972.0,1971.3,1.26929004]
[1772816460289,5.53346566,1972.2,1971.3,1.75376404]
[1772816460641,5.53346566,1972.2,1971.4,0.484474]
[1772816461070,0.46247175,1972.1,1971.3,1.26929004]
[1772816461466,0.46247175,1971.9,1971.3,0.0011]
[1772816463548,0.45844865,1971.7,1971.3,0.0011]
[1772816463748,1.26787706,1971.8,1971.3,0.0011]
[1772816463975,0.45844865,1971.7,1971.3,0.0011]
[1772816465876,1.72642894,1971.7,1971.3,0.0011]
[1772816466072,1.72623199,1972.0,1971.3,0.49710325]
[1772816466275,0.45844865,1971.9,1971.3,0.0011]
[1772816467572,1.26778334,1972.0,1971.3,0.49710325]
[1772816467969,0.001,1972.1,1971.5,0.49600325]
[1772816468150,1.2686861,1972.1,1971.5,0.49600325]
[1772816468357,1.72713475,1972.1,1971.4,1.26813432]
[1772816468962,0.001,1972.1,1971.5,0.49600325]
[1772816470062,0.001,1972.1,1971.6,1.76400893]
[1772816470253,0.001,1972.1,1971.7,0.49600325]
[1772816470651,0.001,1972.3,1971.7,0.49600325]
[1772816471980,0.001,1972.3,1971.3,7.07363728]
[1772816471981,0.45844865,1972.2,1971.3,2.49710325]
[1772816472277,0.45844865,1972.2,1971.3,2.0011]
[1772816472278,0.45844865,1972.1,1971.3,2.0011]
[1772816472879,0.45844865,1972.1,1971.3,3.26929202]
[1772816473058,0.45844865,1972.1,1971.3,2.0011]
[1772816473471,0.45844865,1972.1,1971.3,3.26929859]
[1772816473771,0.45844865,1972.1,1971.3,2.0011]
[1772816474079,0.45844865,1971.9,1971.3,2.0011]
[1772816474480,0.45844865,1971.9,1971.3,3.26928868]
[1772816474686,0.45844865,1972.2,1971.4,0.49600325]
[1772816475769,0.001,1972.3,1971.4,0.49600325]
[1772816475961,1.26856407,1972.3,1971.6,0.49600325]
[1772816476159,0.45944865,1972.2,1971.5,1.26806999]
[1772816476780,0.45944865,1972.2,1971.4,1.2691829]
[1772816476980,0.45944865,1972.2,1971.4,1.26923235]
[1772816477184,0.45944865,1972.2,1971.4,0.0011]
[1772816477362,0.45944865,1972.2,1971.4,1.26922451]
[1772816478160,0.45844865,1972.0,1971.4,0.0011]
[1772816479787,1.72711824,1972.2,1971.4,0.49710325]
[1772816480389,0.45844865,1972.1,1971.5,1.26806999]
[1772816480788,0.45844865,1972.1,1971.4,0.0011]
[1772816481505,0.45844865,1972.1,1971.4,1.269229]
[1772816481868,0.45944865,1972.2,1971.5,0.49600325]
[1772816482296,1.72711556,1972.2,1971.6,1.26800568]
[1772816482989,0.45844865,1972.1,1971.4,0.0011]
[1772816483168,0.45844865,1972.1,1971.4,1.26921157]
[1772816483692,0.45844865,1972.1,1971.4,0.0011]
[1772816483895,0.45844865,1972.0,1971.4,0.0011]
[1772816484272,0.45844865,1971.8,1971.4,0.0011]
[1772816487019,0.45844865,1972.1,1971.4,0.0011]
[1772816487300,1.26866319,1972.2,1971.4,0.49710325]
[1772816487676,1.72707921,1972.2,1971.4,0.49710325]
[1772816487868,0.45944865,1972.2,1971.4,0.49710325]
[1772816488074,0.001,1972.2,1971.6,0.49600325]
[1772816488885,0.001,1972.0,1971.7,1.26794137]
[1772816489085,0.001,1972.0,1971.5,3.26913851]
[1772816489605,0.45944865,1972.0,1971.5,2.0011]
[1772816490736,0.45944865,1972.0,1971.5,0.53289408]
[1772816491011,0.45844865,1971.8,1971.5,0.53289408]
[1772816491206,0.45844865,1971.8,1971.4,0.0011]
[1772816493010,1.26794137,1971.7,1971.4,0.0011]
[1772816493202,1.72637276,1971.8,1971.4,0.0011]
[1772816493583,2.43782722,1971.9,1971.4,0.0011]
[1772816495520,1.26782722,1971.9,1971.4,0.0011]
[1772816495922,1.26782155,1971.9,1971.4,0.0011]
[1772816496135,1.73464093,1972.0,1971.4,0.0011]
[1772816496541,0.001,1972.0,1971.4,0.48460126]
[1772816496844,0.001,1972.2,1971.5,0.48350126]
[1772816497006,5.06864788,1973.0,1972.1,0.48350126]
[1772816497331,0.46584133,1972.9,1971.7,1.39050126]
[1772816497502,0.46584133,1972.7,1971.8,1.75137832]
[1772816497702,0.46584133,1972.6,1971.7,1.26790024]
[1772816498103,0.46584133,1972.7,1971.8,0.48350126]
[1772816498304,0.46584133,1972.7,1971.7,1.26793179]
[1772816498808,1.26723438,1972.8,1971.7,1.26793179]
[1772816498809,0.46584133,1972.5,1971.7,1.26793179]
[1772816499333,0.46584133,1972.5,1971.7,1.75143305]
[1772816500038,1.26749138,1972.4,1971.8,0.48350126]
[1772816501433,0.001,1972.6,1971.8,0.48350126]
[1772816501632,1.26836397,1972.6,1971.8,0.48350126]
[1772816502364,0.46584133,1972.5,1971.6,0.48350126]
[1772816503267,0.46584133,1972.5,1971.5,1.26915243]
[1772816503472,0.46584133,1972.5,1971.5,1.26916278]
[1772816504563,0.46584133,1972.3,1971.5,0.0011]
[1772816504861,1.26749138,1972.4,1971.5,0.48460126]
[1772816506568,0.46584133,1972.4,1971.6,1.75150694]
[1772816508768,1.73339697,1972.3,1971.6,1.26799654]
[1772816509139,0.46584133,1972.2,1971.5,1.26912316]
[1772816509564,0.46584133,1972.2,1971.5,1.75262442]
[1772816510068,0.46584133,1972.2,1971.6,0.48350126]
[1772816510260,1.26755564,1972.3,1971.6,0.48350126]
[1772816510676,1.73339697,1972.3,1971.7,1.26794137]
[1772816510870,0.46584133,1972.2,1971.6,1.75150073]
[1772816512179,0.46584133,1972.2,1971.5,0.0011]
[1772816512376,0.46584133,1972.2,1971.6,0.0011]
[1772816512880,1.73352552,1972.1,1971.6,0.0011]
[1772816513380,1.26865003,1972.2,1971.6,0.48460126]
[1772816513958,0.001,1972.2,1971.6,0.48460126]
[1772816514162,1.26862942,1972.2,1971.6,0.48460126]
[1772816514663,1.26862942,1972.2,1971.7,1.26794137]
[1772816515377,1.26862942,1972.2,1971.6,1.75260694]
[1772816515850,0.45524332,1972.1,1971.6,0.0011]
[1772816516959,0.45524332,1971.9,1971.5,0.0011]
[1772816518556,3.06501142,1971.9,1971.3,0.0011]
[1772816518757,0.45524332,1971.8,1971.1,0.0011]
[1772816518971,0.45524332,1971.6,1971.1,0.0011]
[1772816519160,1.72312038,1971.8,1971.1,0.0011]
[1772816519363,1.72312038,1971.8,1971.1,0.46740103]
[1772816520060,0.45524332,1971.8,1971.1,0.46740103]
[1772816520389,2.43478593,1972.0,1971.1,0.46740103]
[1772816520699,0.45524332,1971.9,1971.1,0.46740103]
[1772816520871,1.72312038,1971.8,1971.1,1.73572257]
[1772816522089,2.43477315,1972.0,1971.2,0.45747428]
[1772816522290,5.07090228,1972.1,1971.2,0.45747428]
[1772816522291,2.93276773,1972.1,1971.2,0.45747428]
[1772816522967,2.93276773,1972.1,1971.3,1.72567293]
[1772816523284,0.4960348,1972.0,1971.1,1.72688788]
[1772816524194,0.4960348,1972.0,1971.2,0.0011]
[1772816525195,0.4960348,1971.8,1971.2,0.0011]
[1772816526867,2.45483927,1971.8,1971.2,0.0011]
[1772816527064,0.4960348,1971.7,1971.1,0.0011]
[1772816527371,0.4960348,1971.5,1971.1,0.0011]
[1772816529368,1.76391186,1971.8,1971.1,0.45857428]
[1772816529581,0.4960348,1971.7,1971.1,0.0011]
[1772816529874,1.26787706,1971.8,1971.1,0.45857428]
[1772816530186,0.4960348,1971.8,1971.1,0.45857428]
[1772816531300,0.4960348,1971.8,1971.1,0.0011]
[1772816531471,1.76397617,1971.7,1971.1,0.0011]
[1772816531871,5.07176548,1971.8,1971.1,0.0011]
[1772816531872,1.26789505,1971.8,1971.1,0.45857428]
[1772816532288,0.4960348,1971.7,1971.1,0.45857428]
[1772816533113,0.4960348,1971.7,1971.1,0.0011]
[1772816533621,1.26800568,1971.6,1971.1,0.0011]
[1772816534704,1.76404048,1971.6,1971.1,0.0011]
[1772816536022,1.76404048,1971.6,1971.2,0.0011]
[1772816536395,0.4960348,1971.5,1971.0,0.0011]
[1772816536716,0.4960348,1971.3,1971.0,0.0011]
[1772816537324,1.172,1971.4,1971.0,0.0011]
[1772816537497,2.44018239,1971.4,1971.0,0.0011]
[1772816538225,2.44018239,1971.4,1970.4,5.07497995]
[1772816538226,0.4960348,1971.3,1970.4,0.45747428]
[1772816538396,0.4960348,1971.2,1970.2,1.72638098]
[1772816539405,0.4960348,1971.2,1970.2,0.45747428]
[1772816539615,0.4960348,1971.2,1970.0,5.98611716]
[1772816539616,0.4960348,1971.0,1970.0,1.72756999]
[1772816539947,0.4960348,1970.8,1970.0,1.27012497]
[1772816540427,0.4960348,1970.8,1970.0,1.72759925]
[1772816540631,1.174,1970.9,1970.1,0.45747428]
[1772816541626,2.4424999,1970.9,1970.2,1.2689067]
[1772816542139,2.9385347,1970.9,1970.2,1.2689067]
[1772816542339,0.4960348,1970.8,1970.2,1.2689067]
[1772816543941,2.44247844,1970.9,1970.3,0.45747428]
[1772816544120,1.174,1970.9,1970.3,0.45747428]
[1772816544315,5.74724299,1971.3,1970.3,3.19419408]
[1772816544316,1.26829399,1971.2,1970.3,3.19419408]
[1772816544638,1.26829399,1971.2,1970.4,0.45747428]
[1772816544840,0.4960348,1971.1,1970.2,1.2689067]
[1772816545025,0.4960348,1971.1,1970.2,1.72638098]
[1772816545433,1.26829399,1971.2,1970.4,0.45747428]
[1772816545610,7.41948,1971.3,1970.4,0.45747428]
[1772816545611,1.85039326,1971.3,1970.4,0.45747428]
[1772816545941,3.11859556,1971.3,1970.6,0.45747428]
[1772816547140,3.61463036,1971.3,1970.6,0.45747428]
[1772816547337,0.4960348,1971.2,1970.5,1.26871352]
[1772816547537,0.4960348,1971.2,1970.4,1.72620575]
[1772816548039,1.26832732,1971.1,1970.4,1.72620575]
[1772816548213,5.56926833,1971.2,1970.4,1.72620575]
[1772816548214,0.001,1970.9,1970.5,0.45747428]
[1772816548738,0.001,1970.9,1970.3,1.72630468]
[1772816548943,0.4970348,1970.9,1970.2,1.26889491]
[1772816550342,1.26852039,1970.8,1970.1,1.72750976]
[1772816550548,1.76455519,1970.8,1970.1,1.72750976]
[1772816552227,1.26945982,1970.9,1970.3,1.73867486]
[1772816554021,1.72965998,1970.9,1970.2,1.26885991]
[1772816554344,0.46020016,1970.8,1970.2,1.26885991]
[1772816554545,0.46020016,1970.8,1970.2,1.73869247]
[1772816554755,0.001,1970.9,1970.3,0.46983256]
[1772816554957,3.57879249,1971.3,1970.3,0.46983256]
[1772816555124,3.57879208,1971.3,1970.3,0.46983256]
[1772816555630,1.85039326,1971.3,1970.3,0.46983256]
[1772816556155,0.67439326,1971.3,1970.3,0.46983256]
[1772816556337,0.67439326,1971.3,1970.5,0.46983256]
[1772816556538,1.94259336,1971.3,1970.7,0.46983256]
[1772816556746,2.40279352,1971.3,1970.5,0.46983256]
[1772816557351,1.13459342,1971.3,1970.5,0.46983256]
[1772816557558,2.40282096,1971.3,1970.5,0.46983256]
[1772816558145,0.57785984,1971.3,1970.6,0.46983256]
[1772816558369,0.37785984,1971.3,1970.9,0.46983256]
[1772816558730,0.46020016,1971.2,1970.4,0.46983256]
[1772816559134,0.46020016,1971.2,1970.3,0.913]
[1772816559656,0.46020016,1971.2,1970.3,0.9141]
[1772816559860,0.46120016,1971.2,1970.3,0.9141]
[1772816560054,0.46120016,1971.2,1970.3,0.0011]
[1772816560240,0.46020016,1970.8,1970.3,0.0011]
[1772816561151,0.46020016,1970.7,1970.3,0.0011]
[1772816562457,0.46020016,1970.5,1970.3,0.0011]
[1772816563438,0.46020016,1970.5,1970.1,0.0011]
[1772816564467,1.72897807,1970.4,1970.1,0.0011]
[1772816564842,2.44268447,1970.6,1970.1,0.0011]
[1772816565070,1.72868296,1970.9,1970.1,0.47093256]
[1772816565241,2.44341449,1971.0,1970.1,0.47093256]
[1772816565764,1.175,1971.0,1970.2,0.46983256]
[1772816566361,2.44340176,1971.0,1970.2,0.46983256]
[1772816566564,0.46020016,1970.9,1970.3,1.2688423]
[1772816566763,0.46020016,1970.9,1970.1,0.0011]
[1772816566936,0.46020016,1970.9,1970.1,1.27005381]
[1772816567664,0.46020016,1970.9,1970.1,1.73988637]
[1772816568042,1.26840176,1971.0,1970.2,0.46983256]
[1772816568570,0.46020016,1970.7,1970.1,0.0011]
[1772816569181,0.46020016,1970.6,1970.1,0.0011]
[1772816570476,0.46020016,1970.4,1970.0,0.0011]
[1772816572274,0.46020016,1970.4,1970.2,0.0011]
[1772816572571,1.2688423,1970.3,1970.2,0.0011]
[1772816572958,1.72904246,1970.3,1970.2,0.0011]
[1772816574270,1.26882649,1970.4,1970.2,0.0011]
[1772816576970,1.76287572,1970.4,1970.2,0.0011]
[1772816577593,0.00109999,1969.8,1969.6,0.0011]
[1772816577791,0.49404923,1969.7,1968.8,0.32857365]
[1772816577975,0.49404923,1969.7,1969.1,1.26956551]
[1772816578170,0.49404923,1969.7,1968.9,0.32857365]
[1772816578376,0.49404923,1969.7,1969.1,1.26957602]
[1772816578602,0.49404923,1969.7,1969.2,1.76406331]
[1772816578801,0.00109999,1969.8,1969.2,2.09263696]
[1772816580408,0.49514922,1969.8,1969.2,1.76403284]
[1772816580610,0.49404923,1969.4,1968.2,5.40909999]
[1772816580777,0.49404923,1969.3,1968.2,5.40909999]
[1772816580982,1.76360031,1969.2,1968.2,5.40909999]
[1772816581304,0.49404923,1969.6,1968.3,0.32857365]
[1772816581507,0.49404923,1969.6,1968.5,0.32857365]
[1772816582784,0.52077532,1969.7,1968.5,0.32857365]
[1772816582994,0.52077532,1969.7,1968.7,0.32857365]
[1772816585402,0.52077532,1969.7,1968.9,0.34695601]
[1772816585805,0.32077532,1969.7,1969.2,0.14695601]
[1772816586200,0.46114942,1970.1,1968.8,1.26980902]
[1772816586419,0.46114942,1970.1,1969.0,0.14695601]
[1772816587624,0.46114942,1970.0,1969.1,1.41657157]
[1772816587824,0.46114942,1970.0,1969.1,1.26961556]
[1772816588224,0.46114942,1969.9,1968.9,5.07883867]
[1772816588528,0.46114942,1969.8,1968.9,5.07883867]
[1772816588828,0.46114942,1969.8,1968.7,1.26987352]
[1772816589698,0.46114942,1969.6,1968.6,5.0797354]
[1772816590099,0.46114942,1969.6,1968.7,0.14695601]
[1772816590996,0.46114942,1969.9,1968.7,0.14695601]
[1772816591198,0.46114942,1969.8,1968.7,0.14695601]
[1772816591723,0.46114942,1969.8,1968.8,1.26980902]
[1772816591930,0.46114942,1969.8,1968.9,0.14695601]
[1772816592504,1.26906858,1970.0,1968.9,0.14695601]
[1772816592706,0.46114942,1969.9,1968.9,1.05695601]
[1772816593033,1.73010522,1970.2,1969.0,0.14695601]
[1772816593353,0.46114942,1970.2,1969.0,0.14695601]
[1772816593703,0.46114942,1970.2,1969.2,0.14695601]
[1772816594529,0.46114942,1970.2,1969.3,0.91]
[1772816594728,0.46114942,1970.2,1969.4,0.14695601]
[1772816595132,0.46114942,1970.2,1969.1,1.26961556]
[1772816595133,0.46114942,1970.1,1969.2,0.91]
[1772816595629,0.46114942,1970.1,1969.1,1.26961556]
[1772816595823,0.46114942,1969.9,1968.9,5.07893986]
[1772816596608,0.001,1969.7,1968.9,5.07893986]
[1772816596819,0.46214942,1969.7,1968.9,5.07893986]
[1772816597033,0.001,1969.7,1969.0,0.14695601]
[1772816597522,5.51292166,1970.4,1969.1,0.14595601]
[1772816597710,0.46114942,1970.3,1969.1,0.14595601]
[1772816598034,0.43759058,1970.4,1969.3,0.14595601]
[1772816598235,0.43759058,1970.4,1969.5,0.14595601]
[1772816599139,0.001,1970.5,1969.6,0.14595601]
[1772816599968,0.001,1970.5,1969.8,0.14595601]
[1772816600285,0.001,1970.5,1969.7,1.26922881]
[1772816600487,0.001,1970.5,1969.3,1.26942215]
[1772816600488,0.46214942,1970.5,1969.3,1.26942215]
[1772816600627,0.46114942,1970.3,1969.0,2.18063735]
[1772816602031,1.2689067,1970.2,1969.0,2.18063735]
[1772816602226,0.46114942,1970.1,1969.0,2.18063735]
[1772816603531,0.46114942,1970.1,1969.0,1.26963735]
[1772816603860,0.46114942,1970.1,1969.0,2.17963735]
[1772816604244,0.46114942,1969.9,1969.0,2.17963735]
[1772816605735,0.46114942,1969.9,1969.1,0.911]
[1772816606135,1.26912492,1969.9,1969.2,1.26955108]
[1772816606358,0.46114942,1970.1,1969.2,1.26955108]
[1772816606557,1.52957636,1970.5,1969.3,0.0846815]
[1772816606558,0.46114942,1970.4,1969.3,0.0846815]
[1772816607248,0.36457636,1970.5,1969.3,0.0846815]
[1772816607454,1.63329171,1970.5,1969.3,0.0846815]
[1772816607663,1.63330213,1970.5,1969.3,0.0846815]
[1772816607863,0.36457636,1970.5,1969.4,0.9956815]
[1772816608261,0.36457636,1970.5,1969.5,1.2693577]
[1772816608472,0.36457636,1970.5,1969.6,0.0846815]
[1772816609185,0.001,1970.4,1969.6,0.0846815]
[1772816609950,0.001,1970.4,1969.7,0.911]
[1772816610279,0.46214942,1970.4,1969.8,0.911]
[1772816610462,0.46114942,1970.3,1969.5,0.911]
[1772816610856,0.001,1970.4,1969.5,0.911]
[1772816611172,0.001,1970.4,1969.5,0.9956815]
[1772816611684,0.001,1970.4,1969.6,0.0846815]
[1772816612058,0.46624349,1970.4,1969.7,0.911]
[1772816612586,0.001,1970.4,1969.8,1.26916438]
[1772816613180,0.001,1970.5,1969.8,1.35384588]
[1772816614867,0.001,1970.5,1969.9,0.0836815]
[1772816616170,0.001,1971.2,1970.2,2.24088401]
[1772816616370,0.001,1971.2,1970.3,0.9946815]
[1772816616570,0.001,1971.2,1970.4,1.35245941]
[1772816617270,0.46624349,1971.2,1970.5,0.911]
[1772816617601,0.46624349,1971.2,1970.4,1.26877791]
[1772816618383,0.001,1971.2,1970.4,1.35245941]
[1772816619101,1e-08,1971.3,1970.5,0.0836815]
[1772816620604,0.46524349,1971.8,1971.0,1.26839167]
[1772816620802,0.46524349,1971.8,1971.1,0.912]
[1772816621300,0.46524349,1971.8,1971.0,1.26839167]
[1772816621490,0.46524349,1971.8,1971.1,0.912]
[1772816621980,0.001,1971.9,1971.1,0.9956815]
[1772816622329,0.001,1972.2,1971.2,0.47441898]
[1772816622486,0.001,1972.2,1971.4,0.47441898]
[1772816623511,0.001,1972.2,1971.3,1.26819865]
[1772816623512,0.001,1972.6,1971.6,0.47441898]
[1772816623810,0.001,1972.6,1971.7,1.38641898]
[1772816624422,0.001,1972.6,1971.8,0.47441898]
[1772816624589,0.001,1972.6,1972.0,0.47441898]
[1772816624791,0.37009488,1973.1,1972.0,0.47441898]
[1772816625090,0.001,1973.2,1972.2,0.47441898]
[1772816625296,0.001,1973.2,1972.3,0.912]
[1772816625711,0.001,1973.2,1972.3,1.38641898]
[1772816625921,0.46624349,1973.2,1972.1,0.79253988]
[1772816626120,0.46524349,1973.1,1972.2,0.912]
[1772816626287,0.46524349,1973.1,1972.3,0.912]
[1772816626616,1.73234942,1973.0,1972.2,1.26761991]
[1772816626794,0.46524349,1973.0,1972.2,1.26761991]
[1772816627790,0.001,1973.2,1972.2,1.74203889]
[1772816628108,0.001,1973.2,1972.3,0.47441898]
[1772816629018,0.001,1973.2,1972.4,1.26749138]
[1772816630205,0.001,1973.2,1972.5,0.47441898]
[1772816630525,0.001,1973.2,1972.4,1.26749138]
[1772816630730,0.46624349,1973.2,1972.4,2.17949138]
[1772816631404,0.001,1973.2,1972.4,2.65391036]
[1772816632031,1.73322761,1973.2,1972.4,2.17949138]
[1772816632845,0.001,1973.2,1972.5,0.47441898]
[1772816633001,0.001,1973.2,1972.6,0.913]
[1772816633316,0.46524349,1973.8,1972.8,1.26723438]
[1772816633504,4.29088837,1974.1,1972.9,0.47441898]
[1772816633711,3.97928102,1974.0,1972.9,0.47441898]
[1772816634030,2.71281382,1974.0,1972.9,0.47441898]
[1772816634236,4.44452243,1974.0,1972.9,0.47441898]
[1772816634526,0.46524349,1973.9,1973.0,1.38741898]
[1772816634698,2.5592146,1974.1,1973.0,1.38741898]
[1772816635213,4.29086371,1974.1,1973.0,1.38741898]
[1772816635738,4.29086371,1974.1,1973.1,1.26704171]
[1772816636035,0.47609635,1974.0,1973.2,0.913]
[1772816636402,0.47609635,1974.0,1973.1,2.18004171]
[1772816637334,0.47609635,1974.0,1973.1,1.26704171]
[1772816637531,0.47609635,1974.0,1973.1,2.18004171]
[1772816637946,0.47609635,1973.9,1973.1,2.18004171]
[1772816638343,0.47609635,1973.9,1973.2,0.913]
[1772816638751,2.5592146,1974.1,1973.2,0.913]
[1772816639063,3.82562611,1974.1,1973.2,0.913]
[1772816639244,4.30172246,1974.1,1973.2,0.913]
[1772816639649,0.47609635,1974.0,1973.1,1.26704171]
[1772816639851,1.74261116,1974.0,1973.1,1.26704171]
[1772816640350,0.47609635,1973.9,1973.1,1.26704171]
[1772816640938,0.47609635,1973.9,1972.7,1.26729862]
[1772816641369,0.47609635,1973.9,1972.7,2.18129862]
[1772816641570,0.47609635,1973.9,1972.7,1.26729862]
[1772816641877,0.48817286,1973.7,1972.6,0.46869399]
[1772816642548,0.48817286,1974.0,1972.6,0.46869399]
[1772816642950,0.48817286,1974.0,1972.8,0.46869399]
[1772816643574,1.26633578,1974.2,1972.8,0.46869399]
[1772816643945,1.26633578,1974.2,1973.0,0.46869399]
[1772816644577,0.48817286,1974.3,1973.2,0.46869399]
[1772816644792,0.48817286,1974.3,1973.4,0.46869399]
[1772816645168,0.85415612,1974.7,1973.4,0.46869399]
[1772816645374,2.58043089,1974.9,1973.6,0.46869399]
[1772816645902,2.58043089,1974.9,1973.8,0.46869399]
[1772816646070,0.48817286,1975.0,1974.0,0.46869399]
[1772816646494,0.001,1975.1,1974.0,0.46869399]
[1772816646677,0.001,1975.1,1974.2,0.46869399]
[1772816647998,0.001,1975.1,1974.4,0.46869399]
[1772816648180,0.001,1975.1,1974.5,0.914]
[1772816649968,0.001,1975.1,1974.6,1.73477319]
[1772816651274,0.001,1975.1,1974.7,0.46869399]
[1772816651771,0.48817286,1975.9,1974.7,0.46869399]
[1772816651967,2.56019299,1976.0,1974.7,0.46869399]
[1772816651968,0.34565293,1976.4,1975.1,0.46869399]
[1772816652171,0.48817286,1976.5,1975.2,1.38269399]
[1772816652617,5.44256783,1976.8,1975.2,1.38269399]
[1772816652618,0.48817286,1976.8,1975.3,0.46869399]
[1772816654021,0.48817286,1976.8,1975.5,0.46869399]
[1772816654218,0.48817286,1976.7,1975.5,0.46869399]
[1772816656121,0.48817286,1976.7,1975.7,0.46869399]
[1772816656451,0.48817286,1976.7,1975.6,1.26543834]
[1772816656621,0.48817286,1976.6,1975.6,1.26543834]
[1772816657442,0.48817286,1976.6,1975.6,1.73413233]
[1772816658216,0.48817286,1976.5,1975.6,1.26543834]
[1772816658416,0.48817286,1976.4,1975.4,1.26556646]
[1772816659141,0.48817286,1976.4,1975.0,0.46869399]
[1772816659344,0.48817286,1976.4,1975.1,5.06302416]
[1772816660034,0.48817286,1976.4,1975.1,5.53171815]
[1772816660343,0.48817286,1976.4,1975.3,1.73432452]
[1772816660546,0.001,1976.6,1975.5,0.46869399]
[1772816662530,0.001,1976.6,1975.7,0.46869399]
[1772816663022,0.48917286,1976.6,1975.6,1.26543834]
[1772816664864,0.48917286,1976.6,1975.6,2.17943834]
[1772816665158,0.48817286,1976.5,1975.2,5.0625248]
[1772816665356,0.48817286,1976.5,1975.3,0.46869399]
[1772816665528,0.001,1976.6,1975.5,0.46869399]
[1772816667135,0.001,1976.6,1975.6,1.73413233]
[1772816667334,0.001,1976.6,1975.7,0.46869399]
[1772816669163,0.001,1976.6,1975.8,1.73400424]
[1772816669762,0.48817286,1976.5,1975.8,1.26531025]
[1772816670461,0.001,1976.6,1975.8,1.26531025]
[1772816671056,0.001,1976.6,1975.9,0.46869399]
[1772816672059,0.001,1976.5,1975.9,0.46869399]